bitfinex/quotes_BTCUSD_20250525
["timestamp","ask_amount","ask_price","bid_price","bid_amount"]
[1748162911266,1.3927706,107000.0,106990.0,0.21428]
[1748162911464,1.3847706,107000.0,106990.0,0.21428]
[1748162911898,1.7687706,107000.0,106990.0,0.20685905]
[1748162912093,0.10893025,107000.0,106990.0,0.37105905]
[1748162912332,0.11693025,107000.0,106990.0,0.37105905]
[1748162912548,0.11693025,107000.0,106990.0,0.38705905]
[1748162912749,0.12593025,107000.0,106990.0,0.38705905]
[1748162912933,0.13093025,107000.0,106990.0,0.38705905]
[1748162913088,0.12293025,107000.0,106990.0,0.38705905]
[1748162913293,0.1374711,107000.0,106990.0,0.38705905]
[1748162913499,0.12344552,107000.0,106990.0,0.38705905]
[1748162913700,0.13144552,107000.0,106990.0,0.38705905]
[1748162914602,0.11690467,107000.0,106990.0,0.72277905]
[1748162915386,0.15423855,107000.0,106990.0,0.39325905]
[1748162915591,0.13544552,107000.0,106990.0,0.54271005]
[1748162915987,0.14044552,107000.0,106990.0,0.54271005]
[1748162916187,0.13244552,107000.0,106990.0,0.54271005]
[1748162916597,0.13944552,107000.0,106990.0,0.69191005]
[1748162917115,0.13944552,107000.0,106990.0,0.37839005]
[1748162917116,0.1504711,107000.0,106990.0,0.37839005]
[1748162917286,0.1504711,107000.0,106990.0,0.69191005]
[1748162917715,0.1404711,107000.0,106990.0,0.54271005]
[1748162917923,0.1555711,107000.0,106990.0,0.54271005]
[1748162918089,0.1555711,107000.0,106990.0,0.37839005]
[1748162918304,0.1555711,107000.0,106990.0,0.54271005]
[1748162920291,0.1555711,107000.0,106990.0,0.37839005]
[1748162920495,0.24509261,107000.0,106990.0,0.54271005]
[1748162920693,0.1555711,107000.0,106990.0,0.54271005]
[1748162920922,0.31454085,106980.0,106970.0,0.05]
[1748162921091,0.31454085,106980.0,106920.0,0.0160985]
[1748162921092,0.01,106910.0,106900.0,0.00919893]
[1748162921314,0.01,106900.0,106880.0,0.89483841]
[1748162921707,0.08954556,106900.0,106890.0,2.12832941]
[1748162921908,0.08954556,106900.0,106890.0,1.57235941]
[1748162922116,0.08954556,106900.0,106890.0,1.73073227]
[1748162922323,0.08969661,106900.0,106890.0,1.73941572]
[1748162922525,0.08969661,106900.0,106890.0,2.07941572]
[1748162922703,0.08969661,106900.0,106890.0,1.73941572]
[1748162923057,0.09069661,106900.0,106890.0,2.08041572]
[1748162923278,0.09169661,106900.0,106890.0,1.74141572]
[1748162924015,0.09169661,106900.0,106890.0,2.08141572]
[1748162924247,0.09169661,106900.0,106890.0,0.53301731]
[1748162924449,0.09169661,106900.0,106890.0,1.57024186]
[1748162924620,0.09169661,106900.0,106890.0,1.58674186]
[1748162924979,0.09169661,106900.0,106890.0,1.43750186]
[1748162925163,0.09069661,106900.0,106890.0,1.58574186]
[1748162925575,0.09169661,106900.0,106890.0,1.58474186]
[1748162925928,0.09569661,106900.0,106890.0,1.58474186]
[1748162926130,0.09569661,106900.0,106890.0,0.68990345]
[1748162926270,0.09569661,106900.0,106890.0,1.58474186]
[1748162927259,0.09569661,106900.0,106890.0,0.81816745]
[1748162927489,0.11023746,106900.0,106890.0,0.17928345]
[1748162927930,0.10069661,106900.0,106890.0,0.34396345]
[1748162929304,0.14053746,106900.0,106890.0,0.00868345]
[1748162929502,0.21446436,106900.0,106890.0,0.32856345]
[1748162930115,0.21446436,106900.0,106890.0,0.00868345]
[1748162930319,0.21246436,106900.0,106890.0,0.31988]
[1748162930522,0.01454085,106890.0,106880.0,0.33584]
[1748162930723,0.10408641,106890.0,106880.0,0.99572]
[1748162931140,0.10408641,106890.0,106860.0,0.89483841]
[1748162931348,0.08954556,106870.0,106860.0,0.0154]
[1748162931524,0.08954556,106870.0,106860.0,1.56599841]
[1748162931721,0.08954556,106870.0,106860.0,0.68766]
[1748162932131,0.08954556,106870.0,106860.0,0.4880804]
[1748162932344,0.08954556,106870.0,106860.0,0.8079604]
[1748162932759,0.09354556,106870.0,106860.0,0.8079604]
[1748162932964,0.08954556,106870.0,106860.0,0.8079604]
[1748162933180,0.09254556,106870.0,106860.0,0.8079604]
[1748162933443,0.09254556,106870.0,106860.0,1.64833706]
[1748162933693,0.10654556,106870.0,106860.0,1.64833706]
[1748162933914,0.10654556,106870.0,106860.0,0.8079604]
[1748162934143,0.10254556,106870.0,106860.0,0.8079604]
[1748162934363,0.015,106870.0,106860.0,0.8079604]
[1748162934779,0.016,106870.0,106860.0,0.8079604]
[1748162934995,0.015,106870.0,106860.0,0.8079604]
[1748162935204,0.016,106870.0,106860.0,1.98833706]
[1748162935405,0.006,106870.0,106860.0,1.98833706]
[1748162935625,0.001,106870.0,106860.0,1.98833706]
[1748162935875,0.001,106870.0,106860.0,1.98933706]
[1748162936094,0.01,106880.0,106870.0,0.3719]
[1748162936287,0.01,106890.0,106880.0,0.0319]
[1748162936552,0.09954556,106890.0,106880.0,3.76903566]
[1748162936760,0.09954556,106890.0,106880.0,3.93088306]
[1748162937006,0.10484556,106890.0,106880.0,0.0086584]
[1748162937285,0.12438641,106890.0,106880.0,0.1916184]
[1748162937517,0.10984556,106890.0,106880.0,0.1916184]
[1748162937736,0.09754556,106890.0,106880.0,0.1926184]
[1748162938186,0.09954556,106890.0,106880.0,0.1936184]
[1748162938403,0.09954556,106890.0,106880.0,0.3429384]
[1748162938662,0.09754556,106890.0,106880.0,0.3419384]
[1748162938873,0.09454556,106890.0,106880.0,0.3409384]
[1748162939110,0.09854556,106890.0,106880.0,0.3419384]
[1748162939953,0.10254556,106890.0,106880.0,0.3429384]
[1748162940526,0.10254556,106890.0,106880.0,0.18296]
[1748162940712,0.10254556,106890.0,106880.0,0.33228]
[1748162941384,0.10254556,106890.0,106870.0,0.0151]
[1748162941603,0.08954556,106880.0,106870.0,0.0151]
[1748162941828,0.08954556,106880.0,106870.0,0.34738]
[1748162942628,0.08954556,106880.0,106870.0,0.34838]
[1748162942883,0.08954556,106880.0,106870.0,0.34738]
[1748162943067,0.08954556,106880.0,106870.0,0.34838]
[1748162943278,0.09254556,106880.0,106870.0,0.0171]
[1748162943500,0.09254556,106880.0,106870.0,0.18296]
[1748162943714,0.09354556,106880.0,106850.0,0.84037666]
[1748162943917,0.007,106880.0,106870.0,0.18396]
[1748162944126,0.09654556,106880.0,106870.0,0.18396]
[1748162944360,0.09654556,106880.0,106870.0,0.001]
[1748162944564,0.10854556,106880.0,106870.0,0.18296]
[1748162944741,0.10854556,106880.0,106870.0,0.33232]
[1748162944979,0.10854556,106880.0,106840.0,0.35122]
[1748162945191,0.08954556,106870.0,106850.0,0.33236]
[1748162945403,0.09454556,106860.0,106850.0,0.183]
[1748162945604,0.09454556,106860.0,106850.0,0.33236]
[1748162945816,0.09454556,106860.0,106850.0,0.67436]
[1748162946032,0.08954556,106860.0,106850.0,0.67436]
[1748162946493,0.08954556,106860.0,106850.0,0.67236]
[1748162946700,0.08969653,106860.0,106850.0,0.67236]
[1748162946903,0.09269653,106860.0,106850.0,0.67336]
[1748162947143,0.09769653,106860.0,106850.0,0.67436]
[1748162947327,0.09769653,106860.0,106850.0,0.342]
[1748162947533,0.09769653,106860.0,106850.0,0.67436]
[1748162948179,0.09769653,106860.0,106850.0,0.342]
[1748162948335,0.12863738,106860.0,106850.0,0.002]
[1748162948537,0.14443738,106860.0,106850.0,0.33436]
[1748162948794,0.12863738,106860.0,106850.0,0.33436]
[1748162949154,0.12063738,106860.0,106850.0,0.33236]
[1748162949544,0.0204,106850.0,106840.0,0.33592]
[1748162949883,0.10994556,106850.0,106840.0,0.66828]
[1748162950073,0.10994556,106850.0,106840.0,0.33592]
[1748162950404,0.09454556,106850.0,106840.0,0.66828]
[1748162950757,0.10835702,106850.0,106840.0,0.66928]
[1748162950964,0.10835702,106850.0,106810.0,0.0043395]
[1748162950965,0.03074085,106820.0,106810.0,0.0043395]
[1748162951191,0.02394085,106810.0,106800.0,0.13552809]
[1748162951393,0.19741331,106810.0,106800.0,0.13552809]
[1748162951638,0.2131308,106810.0,106800.0,0.12805955]
[1748162951843,0.2231308,106810.0,106800.0,0.12805955]
[1748162952213,0.2231308,106810.0,106800.0,0.0473853]
[1748162952214,0.5367715,106810.0,106800.0,0.0473853]
[1748162952568,0.5517715,106810.0,106800.0,0.2303853]
[1748162953010,0.1584446,106810.0,106800.0,0.3797453]
[1748162953214,0.1584446,106810.0,106800.0,0.0473853]
[1748162953215,0.13872711,106810.0,106800.0,0.0473853]
[1748162953430,0.14272711,106810.0,106800.0,0.3797453]
[1748162953638,0.12204873,106810.0,106800.0,0.38841598]
[1748162953859,0.11804873,106810.0,106800.0,0.38841598]
[1748162954063,0.11350788,106810.0,106800.0,0.38841598]
[1748162954274,0.17716586,106810.0,106800.0,0.38841598]
[1748162954709,0.19170671,106810.0,106800.0,0.38853598]
[1748162954927,0.19170671,106810.0,106800.0,1.22891264]
[1748162955135,0.18170671,106810.0,106800.0,0.05605598]
[1748162955347,0.18970671,106810.0,106800.0,0.35411789]
[1748162955559,0.19870671,106810.0,106800.0,0.35411789]
[1748162955766,0.18170671,106810.0,106800.0,0.35411789]
[1748162956140,0.19470671,106810.0,106800.0,0.35411789]
[1748162956425,0.18016586,106810.0,106800.0,0.35411789]
[1748162956629,0.11650788,106810.0,106800.0,0.35411789]
[1748162956845,0.11650788,106810.0,106800.0,1.19449455]
[1748162957048,0.11150788,106810.0,106800.0,1.01693793]
[1748162958369,0.11150788,106810.0,106800.0,1.18227793]
[1748162958780,0.10550788,106810.0,106800.0,1.18227793]
[1748162958962,0.09469642,106810.0,106800.0,1.18227793]
[1748162959168,0.09469642,106810.0,106800.0,1.18879666]
[1748162959394,0.10169642,106810.0,106800.0,1.18879666]
[1748162960221,0.10169642,106810.0,106800.0,0.34842]
[1748162960650,0.10169642,106810.0,106800.0,1.18879666]
[1748162961300,0.10169642,106810.0,106800.0,1.03935666]
[1748162961511,0.10169642,106810.0,106800.0,0.34842]
[1748162961716,0.10169642,106810.0,106800.0,1.17289666]
[1748162962897,0.10169642,106810.0,106790.0,6e-05]
[1748162963226,0.08954556,106800.0,106790.0,1.18043666]
[1748162963409,0.08954556,106800.0,106790.0,1.51299666]
[1748162964327,0.08954556,106800.0,106790.0,1.18043666]
[1748162964531,0.08954556,106800.0,106790.0,1.49109846]
[1748162964931,0.09354556,106800.0,106790.0,1.49109846]
[1748162965143,0.09354556,106800.0,106790.0,1.51293666]
[1748162965635,0.09354556,106800.0,106790.0,0.34]
[1748162965805,0.09754556,106800.0,106790.0,0.67256]
[1748162966398,0.09754556,106800.0,106790.0,1.51293666]
[1748162966735,0.1063348,106800.0,106790.0,1.51293666]
[1748162967332,0.12087565,106800.0,106770.0,0.33604]
[1748162967551,0.12087565,106800.0,106780.0,0.33616]
[1748162967552,0.08954556,106790.0,106780.0,0.33616]
[1748162968573,0.1033348,106790.0,106780.0,0.18672]
[1748162968741,0.1033348,106790.0,106780.0,0.33616]
[1748162968947,0.1073348,106790.0,106780.0,0.33616]
[1748162969149,0.1073348,106790.0,106770.0,0.33604]
[1748162969354,0.08954556,106780.0,106770.0,0.67604]
[1748162969566,0.005,106770.0,106760.0,0.61730551]
[1748162969774,0.09454556,106770.0,106760.0,0.80402551]
[1748162970215,0.09454556,106770.0,106760.0,1.02709666]
[1748162970462,0.09454556,106770.0,106760.0,1.0511725]
[1748162970706,0.09469633,106770.0,106760.0,1.0677725]
[1748162970929,0.08969633,106770.0,106760.0,1.8393765]
[1748162971162,0.08969633,106770.0,106760.0,1.5301345]
[1748162971435,0.08969633,106770.0,106760.0,1.4585535]
[1748162971642,0.08969633,106770.0,106760.0,0.39636884]
[1748162971852,0.09369633,106770.0,106760.0,1.2172525]
[1748162972473,0.09369633,106770.0,106760.0,0.37687584]
[1748162972689,0.09369633,106770.0,106760.0,1.2172525]
[1748162973114,0.12300681,106770.0,106750.0,0.0049101]
[1748162973323,0.16347246,106760.0,106750.0,0.0049101]
[1748162973539,0.16347246,106760.0,106740.0,0.01133323]
[1748162973771,0.08954556,106750.0,106740.0,0.01133323]
[1748162974613,0.08954556,106750.0,106740.0,0.16081323]
[1748162975038,0.09354556,106750.0,106740.0,0.16081323]
[1748162975881,0.09654556,106750.0,106740.0,0.16081323]
[1748162977617,0.09654556,106750.0,106740.0,0.68389323]
[1748162978242,0.08954556,106750.0,106740.0,0.68389323]
[1748162978442,0.09835668,106750.0,106740.0,0.68389323]
[1748162978639,0.10735668,106750.0,106740.0,0.68389323]
[1748162979324,0.10735668,106750.0,106740.0,0.68393323]
[1748162979971,0.38745594,106740.0,106730.0,0.0154]
[1748162980171,0.38745594,106740.0,106730.0,0.21826]
[1748162980172,0.4770015,106740.0,106730.0,0.21826]
[1748162981001,0.4770015,106740.0,106730.0,0.55826]
[1748162981207,0.4810015,106740.0,106730.0,0.3715]
[1748162981410,0.4810015,106740.0,106730.0,0.70782]
[1748162981616,0.4830015,106740.0,106730.0,0.70782]
[1748162982156,0.03254495,106740.0,106730.0,2.793778]
[1748162982365,0.01479053,106740.0,106730.0,2.332531]
[1748162982967,0.01479053,106740.0,106730.0,0.910099]
[1748162984377,0.0063321,106770.0,106740.0,0.34]
[1748162984598,0.09587766,106770.0,106760.0,0.3716]
[1748162984851,0.0063321,106770.0,106760.0,0.529423]
[1748162985586,0.0103321,106770.0,106760.0,0.678943]
[1748162985791,0.00815077,106770.0,106760.0,0.678943]
[1748162986003,0.00815077,106770.0,106760.0,0.673943]
[1748162986783,0.00415077,106770.0,106760.0,0.673943]
[1748162986985,0.00915077,106770.0,106760.0,0.674943]
[1748162987229,0.00515077,106770.0,106760.0,0.674943]
[1748162987436,0.00315077,106770.0,106760.0,0.674943]
[1748162987592,0.00615077,106770.0,106760.0,1.012303]
[1748162988423,0.00015077,106770.0,106760.0,1.010303]
[1748162988654,0.00115077,106770.0,106760.0,1.011303]
[1748162988809,0.00315077,106770.0,106760.0,1.012303]
[1748162989886,0.00315077,106770.0,106760.0,1.11638941]
[1748162990100,0.01098791,106820.0,106780.0,0.04614085]
[1748162990316,0.08954556,106810.0,106800.0,0.34]
[1748162990525,0.08954556,106810.0,106800.0,0.67628]
[1748162990735,0.08954556,106810.0,106800.0,0.34]
[1748162990937,0.08954556,106810.0,106800.0,1.0126]
[1748162992044,0.09254556,106810.0,106800.0,1.0136]
[1748162992474,0.09354556,106810.0,106800.0,1.0136]
[1748162993112,0.09054556,106810.0,106800.0,1.0126]
[1748162993512,0.09354556,106810.0,106800.0,1.0136]
[1748162993723,0.09254556,106810.0,106800.0,1.0136]
[1748162993919,0.09654556,106810.0,106800.0,1.0302]
[1748162994512,0.09654556,106810.0,106800.0,1.03919712]
[1748162994783,0.09654556,106810.0,106800.0,1.0146]
[1748162994988,0.09654556,106810.0,106800.0,1.848756]
[1748162995159,0.09654556,106810.0,106800.0,1.659642]
[1748162995528,0.007,106810.0,106800.0,1.659642]
[1748162998288,0.007,106810.0,106800.0,1.66877648]
[1748162998707,0.007,106810.0,106800.0,1.33253648]
[1748162998912,0.09654556,106810.0,106800.0,0.81019748]
[1748162999122,0.09654556,106810.0,106800.0,0.68749448]
[1748162999305,0.08954556,106810.0,106800.0,0.68441448]
[1748162999659,0.08954556,106810.0,106800.0,1.02437448]
[1748162999871,0.08954556,106810.0,106800.0,1.15692048]
[1748163000071,0.09054556,106810.0,106800.0,1.02437448]
[1748163000332,0.09054556,106810.0,106800.0,0.68549448]
[1748163000547,0.09154556,106810.0,106800.0,0.33636]
[1748163000756,0.09454556,106810.0,106800.0,0.5258]
[1748163000969,0.09354556,106810.0,106800.0,1.01524]
[1748163001406,0.09354556,106810.0,106800.0,0.67636]
[1748163001407,0.09554556,106810.0,106800.0,0.67636]
[1748163001617,0.09554556,106810.0,106800.0,1.01524]
[1748163002101,0.09554556,106810.0,106800.0,1.03074]
[1748163002322,0.006,106810.0,106800.0,1.402632]
[1748163002545,0.006,106810.0,106800.0,1.418632]
[1748163003607,0.006,106810.0,106800.0,1.04674]
[1748163003829,0.09554556,106810.0,106800.0,1.01524]
[1748163004242,0.09554556,106810.0,106800.0,1.137899]
[1748163004869,0.09554556,106810.0,106800.0,1.153899]
[1748163005483,0.09554556,106810.0,106800.0,1.04674]
[1748163005901,0.09554556,106810.0,106800.0,1.161974]
[1748163009412,0.09554556,106810.0,106800.0,1.14967989]
[1748163009952,0.09554556,106810.0,106800.0,0.81079989]
[1748163010158,0.09554556,106810.0,106800.0,1.14967989]
[1748163010987,0.09554556,106810.0,106800.0,0.77929989]
[1748163011173,0.09554556,106810.0,106800.0,1.11817989]
[1748163012925,0.09554556,106810.0,106800.0,1.13367989]
[1748163013135,0.006,106810.0,106800.0,1.13367989]
[1748163013456,0.006,106810.0,106800.0,0.79479989]
[1748163013686,0.006,106810.0,106800.0,1.13367989]
[1748163014263,0.006,106810.0,106800.0,0.79479989]
[1748163014470,0.006,106810.0,106800.0,1.13367989]
[1748163015002,0.006,106810.0,106800.0,1.14967989]
[1748163015613,0.006,106810.0,106800.0,1.00023989]
[1748163015816,0.006,106810.0,106800.0,1.14967989]
[1748163024074,0.006,106810.0,106800.0,1.11817989]
[1748163024243,0.006,106810.0,106800.0,1.13457989]
[1748163024658,0.09554556,106810.0,106800.0,0.79569989]
[1748163024859,0.09554556,106810.0,106800.0,1.13457989]
[1748163025750,0.09554556,106810.0,106800.0,0.96873989]
[1748163025969,0.09554556,106810.0,106800.0,0.52564]
[1748163026171,0.09554556,106810.0,106800.0,0.67508]
[1748163026378,0.10441046,106810.0,106800.0,0.67508]
[1748163026592,0.005,106800.0,106770.0,0.3362]
[1748163026799,0.0316,106780.0,106770.0,0.3362]
[1748163027018,0.12114556,106780.0,106770.0,0.67508]
[1748163027256,0.12114556,106780.0,106770.0,0.3362]
[1748163027463,0.12614556,106780.0,106770.0,0.67508]
[1748163027683,0.13501046,106780.0,106770.0,0.67508]
[1748163028093,0.13501046,106780.0,106770.0,0.68381774]
[1748163028304,0.13501046,106780.0,106770.0,0.6843217]
[1748163028708,0.13401046,106780.0,106770.0,0.6843217]
[1748163028889,0.14499837,106780.0,106770.0,0.6843217]
[1748163029123,0.14499837,106780.0,106770.0,0.3454417]
[1748163029541,0.14999837,106780.0,106770.0,0.6860817]
[1748163029746,0.13901046,106780.0,106770.0,0.6860817]
[1748163030564,0.13901046,106780.0,106770.0,0.3474417]
[1748163030773,0.13901046,106780.0,106770.0,0.6860817]
[1748163031207,0.21293736,106780.0,106770.0,0.0112417]
[1748163031420,0.02,106760.0,106750.0,0.20124]
[1748163031643,0.015,106750.0,106740.0,0.20928]
[1748163031853,0.0351,106740.0,106720.0,0.33624]
[1748163032061,0.0351,106740.0,106730.0,0.35876]
[1748163032331,0.0351,106740.0,106730.0,0.21802935]
[1748163032546,0.0351,106740.0,106730.0,0.00870935]
[1748163032547,0.0301,106740.0,106730.0,0.00870935]
[1748163032770,0.11864556,106740.0,106730.0,0.25950935]
[1748163033223,0.09505111,106740.0,106730.0,0.25950935]
[1748163033442,0.11305111,106740.0,106730.0,0.26050935]
[1748163033657,0.11505111,106740.0,106730.0,0.26150935]
[1748163033860,0.11505111,106740.0,106730.0,0.26050935]
[1748163034286,0.11905111,106740.0,106730.0,0.00970935]
[1748163034497,0.1388244,106740.0,106730.0,0.41992]
[1748163034935,0.1358244,106740.0,106730.0,0.41892]
[1748163035377,0.1418244,106740.0,106730.0,0.41892]
[1748163035593,0.15562601,106740.0,106720.0,0.33624]
[1748163035797,0.06608045,106740.0,106730.0,0.2814]
[1748163036004,0.06807884,106740.0,106730.0,0.2814]
[1748163036221,0.1268244,106740.0,106720.0,0.33624]
[1748163036438,0.1268244,106740.0,106710.0,0.35621872]
[1748163036439,0.1576244,106740.0,106710.0,0.01454085]
[1748163036666,0.11,106710.0,106670.0,0.028066]
[1748163036876,0.09954556,106710.0,106700.0,0.0739269]
[1748163037086,0.09954556,106710.0,106700.0,2.2692939]
[1748163037318,0.19954556,106710.0,106670.0,0.11761156]
[1748163037526,0.19954556,106710.0,106690.0,0.0739269]
[1748163037945,0.11,106710.0,106700.0,0.901173]
[1748163038155,0.11,106710.0,106700.0,0.889283]
[1748163038358,0.11,106710.0,106700.0,0.497194]
[1748163038562,0.19954556,106710.0,106700.0,0.01454085]
[1748163038775,0.19854556,106710.0,106700.0,0.01454085]
[1748163039440,0.20054556,106710.0,106700.0,0.15324485]
[1748163039731,0.20054556,106710.0,106700.0,0.12716785]
[1748163039975,0.20254556,106710.0,106700.0,0.12716785]
[1748163040724,0.20254556,106710.0,106700.0,0.01554085]
[1748163041153,0.20254556,106710.0,106700.0,0.50050785]
[1748163041368,0.20254556,106710.0,106700.0,0.51750785]
[1748163041998,0.20254556,106710.0,106700.0,0.49115485]
[1748163042233,0.20254556,106710.0,106700.0,0.46729085]
[1748163043281,0.20254556,106710.0,106700.0,0.46375691]
[1748163044110,0.113,106710.0,106700.0,0.46375691]
[1748163045470,0.20254556,106710.0,106700.0,0.46375691]
[1748163045669,0.20254556,106710.0,106700.0,0.80023691]
[1748163046094,0.20254556,106710.0,106700.0,0.68848691]
[1748163046575,0.20254556,106710.0,106700.0,0.01200691]
[1748163046779,0.20254556,106710.0,106700.0,0.34848691]
[1748163047623,0.20254556,106710.0,106700.0,0.47658991]
[1748163047887,0.20254556,106710.0,106700.0,0.14010991]
[1748163048073,0.20254556,106710.0,106700.0,0.47658991]
[1748163048245,0.20254556,106710.0,106700.0,0.79925491]
[1748163049031,0.104,106710.0,106700.0,0.79925491]
[1748163049239,0.004,106710.0,106700.0,0.81455491]
[1748163049835,0.004,106710.0,106700.0,0.83025491]
[1748163050247,0.004,106710.0,106700.0,0.91980047]
[1748163050457,0.00125829,106710.0,106700.0,0.91980047]
[1748163050683,0.00050555,106740.0,106710.0,0.35454085]
[1748163050895,0.00050555,106740.0,106730.0,0.38614085]
[1748163051125,0.00050555,106740.0,106730.0,5.21264285]
[1748163051535,0.00050555,106740.0,106730.0,5.24069685]
[1748163051742,0.00050555,106740.0,106730.0,4.77185785]
[1748163051955,0.00050555,106740.0,106730.0,3.86629285]
[1748163052158,0.00050555,106740.0,106730.0,3.84269785]
[1748163052410,0.00150555,106740.0,106730.0,3.84369785]
[1748163052976,0.00350555,106740.0,106730.0,3.84369785]
[1748163053181,0.00250555,106740.0,106730.0,3.84269785]
[1748163053616,0.00250555,106740.0,106730.0,3.84369785]
[1748163054041,0.00250555,106740.0,106730.0,3.829157]
[1748163054252,0.00050555,106740.0,106730.0,3.763673]
[1748163054477,0.00050555,106740.0,106730.0,3.747973]
[1748163054684,0.00150555,106740.0,106730.0,3.747973]
[1748163054895,0.11050555,106740.0,106730.0,0.029054]
[1748163055130,0.11050555,106740.0,106730.0,0.001]
[1748163055338,0.23195111,106740.0,106730.0,0.001]
[1748163055901,0.24074978,106740.0,106730.0,0.001]
[1748163057040,0.25173769,106740.0,106730.0,0.21942]
[1748163057245,0.25173769,106740.0,106730.0,0.001]
[1748163057246,0.14273769,106740.0,106730.0,0.001]
[1748163057592,0.14273769,106740.0,106730.0,0.33744]
[1748163057965,0.14542816,106740.0,106730.0,0.33744]
[1748163058287,0.14842816,106740.0,106730.0,0.33744]
[1748163058489,0.109,106730.0,106700.0,0.029061]
[1748163058748,0.19754556,106730.0,106720.0,0.34]
[1748163058926,0.19754556,106730.0,106720.0,0.474144]
[1748163059558,0.2173616,106730.0,106720.0,0.474144]
[1748163059762,0.2183616,106730.0,106720.0,0.474144]
[1748163059962,0.2183616,106730.0,106720.0,0.460169]
[1748163060165,0.2173616,106730.0,106720.0,0.460169]
[1748163061577,0.2203616,106730.0,106720.0,0.461169]
[1748163062007,0.2193616,106730.0,106720.0,0.461169]
[1748163062500,0.2213616,106730.0,106720.0,0.462169]
[1748163062967,0.2213616,106730.0,106720.0,0.4477]
[1748163063124,0.2369616,106730.0,106720.0,0.342]
[1748163063308,0.2530616,106730.0,106720.0,0.342]
[1748163063503,0.2530616,106730.0,106720.0,0.4822]
[1748163064099,0.2530616,106730.0,106720.0,0.4652]
[1748163064233,0.2530616,106730.0,106720.0,0.4532]
[1748163064419,0.2530616,106730.0,106720.0,0.342]
[1748163065264,0.2530616,106730.0,106720.0,0.33154]
[1748163065464,0.2530616,106730.0,106720.0,0.46921]
[1748163065712,0.2530616,106730.0,106720.0,0.441144]
[1748163065921,0.2369616,106730.0,106720.0,0.441144]
[1748163066299,0.2213616,106730.0,106720.0,0.441644]
[1748163066688,0.21034423,106730.0,106720.0,0.441644]
[1748163069106,0.21034423,106730.0,106720.0,0.33204]
[1748163069329,0.24264423,106730.0,106720.0,0.33204]
[1748163070211,0.13464423,106730.0,106720.0,0.33204]
[1748163071528,0.1290616,106730.0,106720.0,1.098637]
[1748163071750,0.1213616,106730.0,106720.0,1.098637]
[1748163071961,0.03181604,106730.0,106720.0,1.098637]
[1748163072190,0.02381604,106730.0,106720.0,1.098637]
[1748163072411,0.01279867,106730.0,106720.0,1.115037]
[1748163072644,0.01279867,106730.0,106720.0,1.131037]
[1748163072854,0.01279867,106730.0,106720.0,1.22058256]
[1748163073077,0.01279867,106730.0,106720.0,1.23512341]
[1748163073521,0.03324498,106740.0,106720.0,1.20272341]
[1748163073738,0.03324498,106740.0,106730.0,4.858902]
[1748163073958,0.00050555,106740.0,106730.0,4.858902]
[1748163074576,0.00050555,106740.0,106730.0,4.94844756]
[1748163074802,0.00050555,106740.0,106730.0,4.96298841]
[1748163075235,0.03273943,106760.0,106750.0,0.0324]
[1748163075454,0.03273943,106760.0,106750.0,4.96298841]
[1748163075658,0.00195855,106760.0,106750.0,4.96298841]
[1748163076114,0.00195855,106760.0,106750.0,3.579124]
[1748163076329,0.00195855,106760.0,106750.0,3.076559]
[1748163076539,0.00195855,106760.0,106750.0,0.34]
[1748163076747,0.00195855,106760.0,106750.0,5.166502]
[1748163076960,0.008,106770.0,106750.0,5.166502]
[1748163077167,0.008,106770.0,106760.0,1.90471]
[1748163077598,0.008,106770.0,106760.0,0.778003]
[1748163078086,0.008,106770.0,106760.0,0.78734561]
[1748163078296,0.008,106770.0,106760.0,1.12734561]
[1748163078500,0.12715855,106780.0,106760.0,1.12734561]
[1748163078710,0.21670411,106780.0,106770.0,1.221658]
[1748163078924,0.01095855,106780.0,106770.0,1.361293]
[1748163079145,0.00295855,106780.0,106770.0,1.361293]
[1748163080218,0.00295855,106780.0,106770.0,1.377693]
[1748163080425,0.00295855,106780.0,106770.0,1.49777941]
[1748163080834,0.002,106780.0,106770.0,1.49777941]
[1748163081042,0.002,106780.0,106770.0,1.52581941]
[1748163081482,0.002,106780.0,106770.0,0.698472]
[1748163081702,0.001,106780.0,106770.0,0.485261]
[1748163082119,0.002,106780.0,106770.0,0.485261]
[1748163082324,0.002,106780.0,106770.0,0.486261]
[1748163084169,0.001,106780.0,106770.0,0.486261]
[1748163085534,0.001,106780.0,106770.0,0.501261]
[1748163085941,0.001,106780.0,106770.0,0.486261]
[1748163087991,0.001,106780.0,106770.0,0.501261]
[1748163088352,0.001,106780.0,106770.0,0.486261]
[1748163090776,0.001,106780.0,106770.0,0.60820656]
[1748163090982,0.001,106780.0,106770.0,0.59210656]
[1748163091185,0.001,106780.0,106770.0,0.486261]
[1748163094579,0.001,106780.0,106770.0,1.031461]
[1748163094747,0.13034556,106780.0,106770.0,0.36904]
[1748163094950,0.19627246,106780.0,106770.0,0.88248]
[1748163095922,0.12234556,106780.0,106770.0,0.33628]
[1748163096068,0.1398,106770.0,106740.0,0.03759572]
[1748163096265,0.1398,106770.0,106750.0,5.016995]
[1748163096471,0.1398,106770.0,106760.0,1.531597]
[1748163096672,0.1398,106770.0,106760.0,2.076797]
[1748163096911,0.0166,106770.0,106760.0,2.076797]
[1748163097364,0.0256,106770.0,106760.0,2.416797]
[1748163097571,0.0256,106770.0,106760.0,1.653137]
[1748163097839,0.0246,106770.0,106760.0,1.66228065]
[1748163098258,0.0166,106770.0,106760.0,1.66228065]
[1748163098465,0.008,106770.0,106760.0,1.66228065]
[1748163099180,0.001,106770.0,106760.0,1.66228065]
[1748163100372,0.001,106770.0,106760.0,1.67888065]
[1748163102219,0.001,106770.0,106760.0,1.76842621]
[1748163102396,0.001,106770.0,106760.0,1.78352621]
[1748163102599,0.001,106770.0,106760.0,1.79806706]
[1748163103302,0.15101737,106810.0,106770.0,0.0151]
[1748163103511,0.24056293,106810.0,106780.0,4.826502]
[1748163103710,0.24056293,106810.0,106790.0,0.14948]
[1748163104088,0.24056293,106810.0,106800.0,0.193281]
[1748163104307,0.22838693,106810.0,106800.0,0.193281]
[1748163104521,0.22838693,106810.0,106800.0,0.533281]
[1748163104730,0.2285386,106810.0,106800.0,0.533281]
[1748163104906,0.2315386,106810.0,106800.0,0.533281]
[1748163105406,0.2325386,106810.0,106800.0,0.474189]
[1748163105711,0.2315386,106810.0,106800.0,0.474189]
[1748163106073,0.2365386,106810.0,106800.0,0.475189]
[1748163107040,0.2405386,106810.0,106800.0,0.476189]
[1748163107776,0.2405386,106810.0,106800.0,0.342]
[1748163107988,0.1325386,106810.0,106800.0,0.342]